fUST/lending_fUST_20240111
["ID","MTS","AMOUNT","RATE_DAILY","PERIOD"]
[311195627,1704979836748,-687.75702701,0.000247,2]
[311195628,1704979836758,-620.0125326,0.00024851,2]
[311195629,1704979836769,-3000.0,0.00025,2]
[311195630,1704979836780,-4711.91259146,0.00025,2]
[311195631,1704979836791,-677.62834989,0.00025,2]
[311195632,1704979836801,-500.0,0.00025,2]
[311195633,1704979836812,-1409.16323548,0.00025,3]
[311195634,1704979836822,-155.10702385,0.00025,2]
[311195635,1704979836833,-14713.70552147,0.00025,10]
[311195636,1704979836843,-2000.0,0.00025,2]
[311195637,1704979836853,-2000.0,0.0002501,2]
[311195638,1704979836863,-2000.0,0.0002502,2]
[311195639,1704979836873,-2000.0,0.0002503,2]
[311195640,1704979836882,-2000.0,0.0002504,2]
[311195641,1704979836893,-2000.0,0.0002505,2]
[311195642,1704979836902,-2000.0,0.0002506,2]
[311195643,1704979836914,-2000.0,0.0002507,2]
[311195644,1704979836925,-2000.0,0.0002508,2]
[311195645,1704979836934,-2000.0,0.0002509,2]
[311195647,1704979836944,-2000.0,0.000251,2]
[311195649,1704979836954,-2000.0,0.0002511,2]
[311195650,1704979836963,-2000.0,0.0002512,2]
[311195652,1704979836973,-2000.0,0.0002513,2]
[311195654,1704979836982,-50000.0,0.00025133,2]
[311195655,1704979836992,-2000.0,0.0002514,2]
[311195656,1704979837001,-2000.0,0.0002515,2]
[311195657,1704979837011,-150.144,0.00025153,2]
[311195658,1704979837020,-2000.0,0.0002516,2]
[311195659,1704979837029,-2000.0,0.0002517,2]
[311195660,1704979837039,-2000.0,0.0002518,2]
[311195661,1704979837048,-2091.019858,0.0002519,2]
[311195662,1704979837058,-7193.15698043,0.00025297,2]
[311195663,1704979837068,-306.0,0.00025342,2]
[311195664,1704979837079,-151.0,0.00025445,2]
[311195665,1704979837088,-200.0,0.00025479,2]
[311195666,1704979837098,-155.24711582,0.00025649,2]
[311195667,1704979837107,-525.99300196,0.00026,2]
[311195668,1704979837130,-240.7469676,0.00026,2]
[311195669,1704979837140,-620.00062663,0.00026094,2]
[311195670,1704979837149,-50000.0,0.00026103,2]
[311195671,1704979837158,-295.41689888,0.00026172,2]
[311195672,1704979837174,-155.2351122,0.00026172,2]
[311195673,1704979837183,-3645.64225585,0.00026273,2]
[311195674,1704979837193,-309.92980912,0.00026274,2]
[311195675,1704979837202,-1325.685712,0.00026276,2]
[311195676,1704979837212,-1325.685712,0.00026276,2]
[311195677,1704979837221,-49187.02183867,0.00026276,2]
[311195678,1704979837230,-153.0,0.00026301,2]
[311195679,1704979837241,-168.5691802,0.00026301,2]
[311195680,1704979837250,-153.0,0.00026301,2]
[311195681,1704979837261,-300.0110283,0.00026301,2]
[311195682,1704979837271,-153.0,0.00026301,2]
[311195683,1704979837281,-153.0,0.00026301,2]
[311195684,1704979837290,-153.0,0.00026301,2]
[311195685,1704979837301,-153.0,0.00026301,2]
[311195686,1704979837310,-153.0,0.00026301,2]
[311195687,1704979837320,-153.0,0.00026301,2]
[311195688,1704979837330,-153.0,0.00026301,2]
[311195689,1704979837339,-153.0,0.00026301,2]
[311195690,1704979837349,-153.0,0.00026301,2]
[311195691,1704979837358,-153.0,0.00026301,2]
[311195692,1704979837368,-153.0,0.00026301,2]
[311195693,1704979837377,-153.0,0.00026301,2]
[311195694,1704979837387,-153.0,0.00026301,2]
[311195695,1704979837397,-153.0,0.00026301,2]
[311195696,1704979837406,-153.0,0.00026301,2]
[311195697,1704979837418,-153.0,0.00026301,2]
[311195698,1704979837427,-151.0,0.00026376,2]
[311195699,1704979837437,-391.0,0.00026426,15]
[311195700,1704979837447,-861.1894936,0.00026539,2]
[311195701,1704979837456,-460.6542226,0.00027,2]
[311195702,1704979837466,-309.84518051,0.00027,2]
[311195703,1704979837476,-5554.368313,0.00027123,2]
[311195704,1704979837486,-5554.368313,0.00027123,2]
[311195705,1704979837495,-153.0,0.00027123,2]
[311195706,1704979837504,-153.0,0.00027123,2]
[311195707,1704979837514,-153.0,0.00027123,2]
[311195708,1704979837523,-153.0,0.00027123,2]
[311195709,1704979837534,-153.0,0.00027123,2]
[311195710,1704979837543,-153.0,0.00027123,2]
[311195711,1704979837554,-153.0,0.00027123,2]
[311195712,1704979837563,-153.0,0.00027123,2]
[311195713,1704979837573,-153.0,0.00027123,2]
[311195714,1704979837583,-153.0,0.00027123,2]
[311195715,1704979837592,-153.0,0.00027123,2]
[311195716,1704979837602,-153.0,0.00027123,2]
[311195717,1704979837611,-153.0,0.00027123,2]
[311195720,1704979837621,-153.0,0.00027123,2]
[311195723,1704979837630,-153.0,0.00027123,2]
[311195725,1704979837640,-153.0,0.00027123,2]
[311195726,1704979837649,-153.0,0.00027123,2]
[311195728,1704979837659,-153.0,0.00027123,2]
[311195730,1704979837672,-153.0,0.00027123,2]
[311195732,1704979837681,-153.0,0.00027123,2]
[311195734,1704979837691,-153.0,0.00027123,2]
[311195736,1704979837700,-153.0,0.00027123,2]
[311195739,1704979837709,-153.0,0.00027123,2]
[311195741,1704979837719,-153.0,0.00027123,2]
[311195743,1704979837728,-153.0,0.00027123,2]
[311195744,1704979837737,-153.0,0.00027123,2]
[311195745,1704979837747,-153.0,0.00027123,2]
[311195746,1704979837756,-153.0,0.00027123,2]
[311195748,1704979837766,-153.0,0.00027123,2]
[311195750,1704979837776,-153.0,0.00027123,2]
[311195752,1704979837785,-151.0,0.00027308,2]
[311195754,1704979837795,-192.014833,0.00027397,2]
[311195756,1704979837804,-192.014833,0.00027397,2]
[311195758,1704979837813,-155.0,0.00027397,2]
[311195769,1704979837914,-526.96,0.00027397,2]
[311195771,1704979837923,-661.64,0.00027397,2]
[311195773,1704979837933,-661.64,0.00027397,2]
[311195775,1704979837942,-661.64,0.00027397,2]
[311195777,1704979837951,-661.64,0.00027397,2]
[311195779,1704979837960,-661.64,0.00027397,2]
[311195781,1704979837969,-661.64,0.00027397,2]
[311195783,1704979837979,-661.64,0.00027397,2]
[311195785,1704979837988,-661.64,0.00027397,2]
[311195787,1704979837997,-661.64,0.00027397,2]
[311195790,1704979838007,-661.64,0.00027397,2]
[311195792,1704979838017,-661.64,0.00027397,2]
[311195793,1704979838026,-661.64,0.00027397,2]
[311195795,1704979838035,-661.64,0.00027397,2]
[311195797,1704979838044,-661.64,0.00027397,2]
[311195799,1704979838053,-661.64,0.00027397,2]
[311195801,1704979838063,-661.64,0.00027397,2]
[311195803,1704979838072,-661.64,0.00027397,2]
[311195805,1704979838081,-661.64,0.00027397,2]
[311195807,1704979838091,-661.64,0.00027397,2]
[311195809,1704979838100,-661.64,0.00027397,2]
[311195811,1704979838110,-661.64,0.00027397,2]
[311195813,1704979838119,-661.64,0.00027397,2]
[311195815,1704979838128,-661.64,0.00027397,2]
[311195818,1704979838138,-661.85273758,0.00027397,2]
[311195819,1704979838147,-150.45908947,0.00027397,7]
[311195820,1704979838157,-405.67767986,0.00027397,2]
[311195821,1704979838169,-620.00003133,0.00027398,2]
[311195822,1704979838178,-2065.49,0.000274,2]
[311195823,1704979838187,-34815.28968525,0.000275,2]
[311195824,1704979838197,-526.96,0.00027534,2]
[311195825,1704979838206,-526.96,0.00027671,2]
[311195826,1704979838215,-526.96,0.00027808,2]
[311195827,1704979838225,-526.96,0.00027945,2]
[311195828,1704979838234,-153.0,0.00027945,2]
[311195829,1704979838243,-306.3392106,0.00027945,2]
[311195830,1704979838255,-500.0,0.00028,2]
[311195831,1704979838264,-1000.0,0.00028,28]
[311195832,1704979838273,-1500.0,0.00028,2]
[311195833,1704979838283,-1500.0,0.00028,2]
[311195834,1704979838292,-1500.0,0.00028,2]
[311195835,1704979838306,-1500.0,0.00028,2]
[311195837,1704979838315,-1577.12,0.00028,2]
[311195839,1704979838324,-1500.0,0.00028,2]
[311195841,1704979838333,-1500.0,0.00028,2]
[311195843,1704979838342,-1500.0,0.00028,2]
[311195845,1704979838352,-526.96,0.00028082,2]
[311195847,1704979838361,-526.96,0.00028219,2]
[311195849,1704979838370,-151.0,0.00028239,2]
[311195851,1704979838380,-526.96,0.00028356,2]
[311195853,1704979838389,-153.0,0.00028438,2]
[311195855,1704979838398,-153.0,0.00028438,2]
[311195856,1704979838407,-153.0,0.00028438,2]
[311195859,1704979838418,-526.96,0.00028493,2]
[311195861,1704979838427,-9100.04106185,0.000285,4]
[311195863,1704979838436,-9100.04106185,0.000285,4]
[311195864,1704979838446,-151.2478173,0.00028561,2]
[311195866,1704979838456,-526.96,0.0002863,2]
[311195868,1704979838465,-155.0,0.00028767,2]
[311195870,1704979838474,-526.96,0.00028767,2]
[311195872,1704979838483,-153.0,0.00028767,2]
[311195874,1704979838492,-153.0,0.00028767,2]
[311195876,1704979838502,-153.0,0.00028767,2]
[311195878,1704979838511,-153.0,0.00028767,2]
[311195880,1704979838520,-153.0,0.00028767,2]
[311195882,1704979838530,-153.0,0.00028767,2]
[311195884,1704979838540,-153.0,0.00028767,2]
[311195886,1704979838549,-153.0,0.00028767,2]
[311195888,1704979838558,-153.0,0.00028767,2]
[311195890,1704979838567,-153.0,0.00028767,2]
[311195892,1704979838577,-153.0,0.00028767,2]
[311195894,1704979838586,-153.0,0.00028767,2]
[311195896,1704979838595,-153.0,0.00028767,2]
[311195898,1704979838604,-153.0,0.00028767,2]
[311195900,1704979838614,-153.0,0.00028767,2]
[311195902,1704979838622,-153.0,0.00028767,2]
[311195904,1704979838631,-153.0,0.00028767,2]
[311195906,1704979838641,-153.0,0.00028767,2]
[311195908,1704979838649,-337.48,0.00028799,2]
[311195910,1704979838659,-337.48,0.00028799,2]
[311195912,1704979838670,-337.48,0.00028799,2]
[311195914,1704979838679,-337.48,0.00028799,2]
[311195916,1704979838688,-337.48,0.00028799,2]
[311195918,1704979838697,-337.48,0.00028799,2]
[311195920,1704979838706,-337.48,0.00028799,2]
[311195922,1704979838714,-337.48,0.00028799,2]
[311195924,1704979838723,-89124.07237147,0.000288,2]
[311195926,1704979838732,-1325.685712,0.000288,2]
[311195928,1704979838741,-1325.685712,0.000288,2]
[311195930,1704979838750,-5554.368313,0.000288,2]
[311195932,1704979838760,-5554.368313,0.000288,2]
[311195934,1704979838769,-192.014833,0.000288,2]
[311195936,1704979838778,-192.014833,0.000288,2]
[311195938,1704979838788,-861.1894936,0.000288,2]
[311195940,1704979838797,-242.90501079,0.00028816,4]
[311195942,1704979838807,-15331.3868632,0.00028838,3]
[311195944,1704979838816,-592.53676503,0.00028839,2]
[311195946,1704979838825,-500.0,0.00028839,2]
[311195948,1704979838834,-500.0,0.00028839,2]
[311195950,1704979838843,-500.0,0.00028839,2]
[311195952,1704979838851,-500.0,0.00028839,2]
[311195954,1704979838861,-500.0,0.00028839,2]
[311195956,1704979838870,-500.0,0.00028839,2]
[311195959,1704979838887,-500.0,0.00028839,2]
[311195961,1704979838900,-500.0,0.00028839,2]
[311195963,1704979838910,-500.0,0.00028839,2]
[311195966,1704979838923,-500.0,0.00028839,2]
[311195968,1704979838933,-500.0,0.00028839,2]
[311195970,1704979838943,-500.0,0.00028839,2]
[311195972,1704979838952,-252.4270471,0.00028839,2]
[311195974,1704979838962,-500.0,0.00028839,2]
[311195976,1704979838972,-500.0,0.00028839,2]
[311195978,1704979838982,-500.0,0.00028839,2]
[311195980,1704979838991,-500.0,0.00028839,2]
[311195982,1704979839001,-500.0,0.00028839,2]
[311195984,1704979839010,-500.0,0.00028839,2]
[311195986,1704979839019,-500.0,0.00028839,2]
[311195988,1704979839028,-500.0,0.00028839,2]
[311195990,1704979839038,-500.0,0.00028839,2]
[311195992,1704979839047,-188.42856704,0.00028839,2]
[311195994,1704979839056,-500.0,0.00028839,2]
[311195996,1704979839065,-183.17066322,0.00028839,2]
[311195998,1704979839075,-500.0,0.00028839,2]
[311196000,1704979839084,-500.0,0.00028839,2]
[311196002,1704979839094,-500.0,0.00028839,2]
[311196004,1704979839104,-500.0,0.00028839,2]
[311196006,1704979839113,-547.62868631,0.00028839,2]
[311196008,1704979839122,-500.0,0.00028839,2]
[311196010,1704979839132,-500.0,0.00028839,2]
[311196012,1704979839141,-500.0,0.00028839,2]
[311196014,1704979839151,-500.0,0.00028839,2]
[311196016,1704979839160,-500.0,0.00028839,2]
[311196018,1704979839171,-500.0,0.00028839,2]
[311196020,1704979839180,-500.0,0.00028839,2]
[311196022,1704979839189,-500.0,0.00028839,2]
[311196024,1704979839198,-500.0,0.00028839,2]
[311196026,1704979839208,-495.37997253,0.00028839,2]
[311196028,1704979839217,-5000.0,0.00028855,5]
[311196030,1704979839226,-5000.0,0.00028855,5]
[311196032,1704979839236,-5000.0,0.00028855,5]
[311196034,1704979839245,-7105.40751976,0.00028855,3]
[311196036,1704979839256,-5000.0,0.00028855,5]
[311196038,1704979839266,-5000.0,0.00028855,5]
[311196040,1704979839275,-50000.0,0.00028876,3]
[311196042,1704979839284,-5000.0,0.00028878,5]
[311196044,1704979839293,-5000.0,0.00028878,5]
[311196046,1704979839303,-5000.0,0.0002889,5]
[311196048,1704979839313,-5000.0,0.0002889,5]
[311196050,1704979839322,-2369.73605952,0.0002889,3]
[311196052,1704979839332,-5000.0,0.0002889,5]
[311196054,1704979839342,-5000.0,0.0002889,5]
[311196056,1704979839351,-5000.0,0.0002889,5]
[311196058,1704979839360,-5000.0,0.0002889,5]
[311196061,1704979839370,-5000.0,0.0002889,5]
[311196063,1704979839380,-5000.0,0.0002889,5]
[311196064,1704979839389,-1325.685712,0.0002889,2]
[311196066,1704979839399,-1325.685712,0.0002889,2]
[311196068,1704979839409,-5554.368313,0.0002889,2]
[311196070,1704979839419,-5554.368313,0.0002889,2]
[311196072,1704979839430,-38379.93475574,0.000289,2]
[311196074,1704979839439,-192.014833,0.000289,2]
[311196076,1704979839449,-192.014833,0.000289,2]
[311196078,1704979839458,-526.96,0.00028904,2]
[311196081,1704979839468,-3130.18533872,0.00028911,3]
[311196082,1704979839478,-5000.0,0.00028911,5]
[311196084,1704979839487,-5000.0,0.00028914,5]
[311196086,1704979839497,-5000.0,0.00028917,5]
[311196089,1704979839508,-50000.0,0.00028965,3]
[311196091,1704979839518,-160.0,0.00028999,10]
[311196093,1704979839527,-161.39102364,0.00028999,10]
[311196095,1704979839537,-1888.96501401,0.00028999,2]
[311196097,1704979839546,-426.2336021,0.00028999,4]
[311196098,1704979839556,-476.22449285,0.00028999,4]
[311196101,1704979839566,-500.0,0.00028999,4]
[311196103,1704979839576,-378.50416288,0.00028999,4]
[311196104,1704979839586,-268.6869823,0.00028999,4]
[311196106,1704979839595,-338.86073146,0.00028999,4]
[311196108,1704979839605,-233.17305705,0.00028999,4]
[311196110,1704979839615,-500.0,0.00028999,4]
[311196112,1704979839624,-500.0,0.00028999,4]
[311196114,1704979839633,-500.0,0.00028999,4]
[311196116,1704979839642,-152025.64577815,0.00028999,2]
[311196120,1704979839664,-4716.05,0.00028999,2]
[311196122,1704979839678,-5743.93294483,0.00028999,2]
[311196183,1704979840184,-0.22987,0.00028768,2]
[311196186,1704979840195,-619.77013157,0.00028768,2]
[311196188,1704979840205,-278224.14773702,0.00028999,2]
[311196190,1704979840215,-155.08995217,0.00029,2]
[311196191,1704979840225,-5807.00559693,0.00029,2]
[311196193,1704979840234,-118637.29995858,0.00029,2]
[311196195,1704979840244,-79469.02841882,0.00029,2]
[311196197,1704979840256,-104131.33962222,0.00029,3]
[311196199,1704979840266,-155.02015262,0.00029,3]
[311196201,1704979840275,-1000.0,0.00029,29]
[311196203,1704979840284,-3000.0,0.00029,2]
[311196206,1704979840295,-28384.0,0.00029,2]
[311196207,1704979840305,-34262.05425016,0.00029,2]
[311196210,1704979840318,-7192.03077187,0.00029,2]
[311196332,1704979841395,-690.84621793,0.00029,2]
[311196565,1704979843282,-690.45903948,0.00029,2]
[311196567,1704979843296,-1287.85400915,0.00029,2]
[311199106,1704979900823,11908.01426953,0.0003,30]
[311199127,1704980890053,-6602.15861025,0.00019248,2]
[311199128,1704980890091,-5397.84138975,0.00019249,2]
[311199129,1704980890192,-1416.54760316,0.00019249,2]
[311199130,1704980890223,-1112.22182837,0.000195,2]
[311199134,1704980926750,-6437.73098495,0.000195,2]
[311199135,1704980926844,-131.382265,0.000195,2]
[311199136,1704980927016,6306.34871995,0.000195,2]
[311199137,1704980927408,-2094.06753012,0.000195,2]
[311199138,1704980928392,182.50978617,0.000195,2]
[311199139,1704980929759,602.23781455,0.000195,2]
[311199140,1704980938170,-523.31014079,0.000195,2]
[311199141,1704980938412,-10.67979879,0.000195,2]
[311199188,1704980976681,-1247.82964834,0.000195,2]
[311199189,1704980976921,-25.46591119,0.000195,2]
[311199190,1704980977697,533.98993958,0.000195,2]
[311199191,1704980977938,688.37379757,0.000195,2]
[311199192,1704980977965,1247.82964834,0.000195,2]
[311199193,1704980978136,-523.31014079,0.000195,2]
[311199194,1704980978325,-523.31014079,0.000195,2]
[311199195,1704980978515,-847.96531986,0.000195,2]
[311199196,1704980978544,-1008.72856955,0.000195,2]
[311199197,1704980978640,-6554.38417606,0.000195,2]
[311199198,1704980981156,1587.53319979,0.00019499,2]
[311199199,1704980987467,-10072.51062562,0.000195,2]
[311199200,1704980987591,-205.56144134,0.000195,2]
[311199206,1704981029534,-12000.0,0.00019025,2]
[311199207,1704981029777,-12000.0,0.00019025,2]
[311199208,1704981029899,-900.0,0.00019025,2]
[311199250,1704981032975,-265.4447405,0.00019014,2]
[311199251,1704981033093,-5.4172396,0.00019014,2]
[311199304,1704981034260,-155.108576,0.00019991,3]
[311199307,1704981034270,-1250.86956895,0.00019991,2]
[311199310,1704981034279,-938.47185505,0.00019991,2]
[311199438,1704981039579,-173.74997332,0.00019991,2]
[311199440,1704981039589,-322.47705028,0.00019992,2]
[311199442,1704981039598,-686.6489252,0.00019992,2]
[311199444,1704981039609,-7988.52269899,0.00019992,2]
[311199446,1704981039618,-901.83243089,0.00019993,2]
[311199448,1704981039628,-170.50663149,0.00019993,2]
[311199450,1704981039637,-19663.58309656,0.00019993,2]
[311199452,1704981039646,-155.108576,0.00019994,2]
[311199454,1704981039655,-4789.41827786,0.00019994,2]
[311199456,1704981039663,-155.108576,0.0002,2]
[311199458,1704981039672,-155.108576,0.0002,2]
[311199460,1704981039682,-266.37190097,0.0002,2]
[311199462,1704981039691,-853.72221584,0.0002,2]
[311199464,1704981039699,-677.0708176,0.0002,2]
[311199466,1704981039708,-665.38112702,0.00020012,2]
[311199468,1704981039718,-1195.27282006,0.00020013,2]
[311199470,1704981039727,-155.108576,0.00020013,2]
[311199471,1704981039736,-236.97375297,0.00020014,2]
[311199474,1704981039745,-569.37401545,0.00020014,2]
[311199475,1704981039755,-1586.21182789,0.0002007,2]
[311199477,1704981039764,-270787.85398816,0.00020071,2]
[311199479,1704981039774,-164.57784,0.00020869,2]
[311199482,1704981039784,-326.7917286,0.00021,2]
[311199484,1704981039793,-200.0,0.00021173,7]
[311199485,1704981039801,-153.0,0.00021507,2]
[311199487,1704981039810,-166.666666,0.00021918,2]
[311199489,1704981039819,-6602.15861025,0.00021999,2]
[311199492,1704981039829,-156.88951629,0.00022,2]
[311199493,1704981039838,-4918.87947459,0.00022,2]
[311199495,1704981039848,-166.666666,0.00022431,2]
[311199498,1704981039858,-166.666666,0.00022944,2]
[311199499,1704981039868,-3935.17481612,0.00022999,2]
[311199500,1704981039877,-2093.45221107,0.00023,2]
[311199501,1704981039887,-9923.17263833,0.00023,2]
[311199502,1704981039896,-280.0,0.00023291,7]
[311199503,1704981039905,-166.666666,0.00023456,2]
[311199504,1704981039915,-497.12734932,0.000239,5]
[311199505,1704981039924,-166.666666,0.00023969,2]
[311199506,1704981039933,-1890.0847226,0.00023997,2]
[311199507,1704981039943,-520.84270389,0.00023997,2]
[311199508,1704981039952,-2872.41512846,0.00023997,2]
[311199509,1704981039962,-178.40030532,0.00023997,2]
[311199510,1704981039971,-7941.85502117,0.00023997,2]
[311199511,1704981039981,-787.5012184,0.00023998,2]
[311199512,1704981039990,-3737.09785385,0.00023998,2]
[311199513,1704981039999,-322.75514155,0.00023998,2]
[311199514,1704981040008,-190.96827556,0.00023998,2]
[311199515,1704981040017,-36818.51868738,0.00023998,2]
[311199516,1704981040027,-2029.47846271,0.00023998,2]
[311199517,1704981040037,-614.12133667,0.00024,2]
[311199519,1704981040046,-7687.90703714,0.00024,2]
[311199521,1704981040055,-2967.56503246,0.00024266,5]
[311199523,1704981040065,-151.0,0.00024279,2]
[311199525,1704981040074,-166.666666,0.00024482,2]
[311199527,1704981040083,-687.75702701,0.000247,2]
[311199529,1704981040093,-4711.91259146,0.00025,2]
[311199531,1704981040102,-3000.0,0.00025,2]
[311199533,1704981040113,-677.62834989,0.00025,2]
[311199535,1704981040122,-789.02686556,0.00025017,2]
[311199537,1704981040131,-1578.97802722,0.00025018,2]
[311199539,1704981040140,-153.0,0.00025479,2]
[311199541,1704981040149,-151.0,0.00025559,2]
[311199543,1704981040158,-391.0,0.0002562,7]
[311199545,1704981040167,-525.99300196,0.00026,2]
[311199547,1704981040176,-151.0,0.0002684,2]
[311199549,1704981040185,-460.6542226,0.00027,2]
[311199551,1704981040194,-155.0,0.00027397,2]
[311199553,1704981040203,-500.0,0.00027397,2]
[311199555,1704981040212,-500.0,0.00027534,2]
[311199557,1704981040220,-500.0,0.00027671,2]
[311199559,1704981040230,-152.0,0.00027805,2]
[311199561,1704981040239,-500.0,0.00027808,2]
[311199565,1704981040249,-500.0,0.00027945,2]
[311199567,1704981040258,-153.0,0.00027945,2]
[311199568,1704981040268,-153.0,0.00027945,2]
[311199570,1704981040277,-153.0,0.00027945,2]
[311199573,1704981040286,-153.0,0.00027945,2]
[311199575,1704981040296,-153.0,0.00027945,2]
[311199577,1704981040306,-153.0,0.00027945,2]
[311199579,1704981040316,-153.0,0.00027945,2]
[311199581,1704981040326,-153.0,0.00027945,2]
[311199584,1704981040335,-153.0,0.00027945,2]
[311199587,1704981040344,-3000.0,0.00028,2]
[311199590,1704981040353,-500.0,0.00028082,2]
[311199593,1704981040363,-151.0,0.00028121,2]
[311199596,1704981040373,-200.0,0.00028182,15]
[311199599,1704981040382,-348.0,0.00028182,15]
[311199602,1704981040391,-500.0,0.00028219,2]
[311199605,1704981040401,-500.0,0.00028356,2]
[311199607,1704981040410,-3498.1239256,0.00028418,2]
[311199609,1704981040420,-500.0,0.00028493,2]
[311199611,1704981040430,-9100.04106185,0.000285,4]
[311199613,1704981040439,-216914.6850145,0.00028598,2]
[311199625,1704981040545,-10202.84952288,0.00028598,2]
[311199628,1704981040561,-8456.76342565,0.00028598,2]
[311199699,1704981041239,-17028.44644635,0.00028598,2]
[311199707,1704981041300,-23397.25559062,0.00028598,2]
[311199709,1704981041310,-249.26117983,0.0002863,2]
[311200018,1704981043299,-250.73882017,0.0002863,2]
[311200020,1704981043308,-2261.35695943,0.00028662,3]
[311200022,1704981043317,-2181.6042204,0.00028662,5]
[311200365,1704981046349,-6602.15861025,0.00019991,2]
[311200366,1704981046358,-155.108576,0.00020012,2]
[311200368,1704981046369,-153.0,0.00027945,2]
[311200370,1704981046378,-2002.87121015,0.00028662,5]
[311200567,1704981048710,155.108576,0.00018062,3]
[311202471,1704981112231,10000.0,0.0003,30]
[311202500,1704981231850,1759.11302313,0.0001631,2]
[311202505,1704981248261,649.92038778,0.000125,2]
[311202515,1704981331181,-2580.94432161,0.00019073,2]
[311202516,1704981331332,-52.67233309,0.00019073,2]
[311202518,1704981337183,-1225.85217757,0.00019072,2]
[311202519,1704981337416,-25.01739138,0.00019072,2]
[311202520,1704981340778,-316.44551422,0.00019071,2]
[311202521,1704981340868,-6.45807172,0.00019071,2]
[311202522,1704981341934,178.47960527,0.00019071,2]
[311202524,1704981402400,-166.4486684,0.00019178,2]
[311202525,1704981402614,-3.3969116,0.00019178,2]
[311202530,1704981456905,24900.0,0.00018988,2]
[311202532,1704981465339,350.232632,0.00018987,2]
[311202578,1704981931210,175.116316,0.0001886,2]
[311202600,1704982070376,24900.0,0.00018828,2]
[311202601,1704982075577,-343.10731278,0.00019739,2]
[311202602,1704982075686,-7.00219006,0.00019739,2]
[311203052,1704982238797,-155.11633725,0.00019808,2]
[311203053,1704982238809,-155.11633725,0.00019809,3]
[311203054,1704982238818,-3738.72601468,0.0001981,2]
[311203055,1704982238828,-901.83243089,0.0001981,2]
[311203056,1704982238837,-1587.53319979,0.00019811,2]
[311203057,1704982238846,-2030.38673937,0.00019811,2]
[311203058,1704982238856,-322.47705028,0.00019812,2]
[311203059,1704982238865,-1291.19265067,0.00019812,2]
[311203060,1704982238875,-19663.58309656,0.00019812,2]
[311203061,1704982238884,-20865.20196494,0.00019812,2]
[311203062,1704982238894,-521.06936744,0.00019813,2]
[311203063,1704982238904,-7988.52269899,0.00019813,2]
[311203064,1704982238913,-6602.15861025,0.00019813,2]
[311203065,1704982238924,-1112.22182837,0.00019814,2]
[311203066,1704982238934,-270787.85398816,0.00019814,2]
[311203067,1704982238944,-36895.86463632,0.00019815,2]
[311203068,1704982238953,-4789.41827786,0.00019815,2]
[311203069,1704982238963,-169.91439281,0.00019839,2]
[311203070,1704982238972,-169.91439281,0.00019841,2]
[311203071,1704982238982,-169.91439281,0.00019843,2]
[311203072,1704982238991,-787.5012184,0.0001997,2]
[311203073,1704982239001,-322.60669716,0.00019993,2]
[311203074,1704982239011,-2130.59703965,0.0002,5]
[311203075,1704982239020,-155.108576,0.0002,2]
[311203076,1704982239030,-1195.27282006,0.0002,2]
[311203077,1704982239039,-236.97375297,0.0002,2]
[311203078,1704982239051,-266.37190097,0.0002,2]
[311203079,1704982239060,-853.72221584,0.0002,2]
[311203080,1704982239070,-155.10081553,0.0002,2]
[311203081,1704982239079,-677.0708176,0.0002,2]
[311203082,1704982239088,-569.37401545,0.0002,2]
[311203083,1704982239098,-665.38112702,0.0002,2]
[311203084,1704982239107,-155.09305583,0.0002,2]